Workbook

Sheet паспорт
A1: ПАТ "УКРТРАНСГАЗ" | G1: ПАСПОРТ ФІЗИКО-ХІМІЧНИХ ПОКАЗНИКІВ ПРИРОДНОГО ГАЗУ № 24
A2: Філія "УМГ "КИЇВТРАНСГАЗ" | G2: переданого Боярським ЛВУМГ та прийнятого ПАТ "Київоблгаз", ПАТ "Київгаз"
A3: Боярське ЛВУМГ | G3: Маршрут №24
A4: Вимірювальна хіміко-аналітична лабораторія
A5: Свідоцтво № 70А-43-14 чинно до 23.07.2019 р. | K5: по газопроводу "ЄЛЕЦЬ - КУРСЬК - КИЇВ" | V5: за період з | X5: 2017-03-01 | Z5: по | AA5: 2017-03-31
A7: Число місяця | B7: Компонентний склад, % мол. | N7: Фізико-хімічні показники газу обчислені на основі компонентного складу, 101,325 кПа | X7: Температура точки роси за вологою (Р = 3.92 МПа), ºС | Y7: Температура точки роси за вуглеводнями, ºС | Z7: Вміст сірководню, г/м3 | AA7: Вміст меркаптанової сірки, г/м3 | AB7: Вміст механічних домішок, г/м3
N8: Густина абсолютна, кг/м3,при 20 ºС, | O8: Температура вимірювання/згоряння при 20/25°С
B9: метан, С1 | C9: етан, С2 | D9: пропан, С3 | E9: ізо-бутан, і-С4 | F9: н-бутан, н-С4 | G9: нео-пентан, нео-С5 | H9: ізо-пентан, і-С5 | I9: н-пентан, н-С5 | J9: гексани та вищі, С6+ | K9: кисень, О2 | L9: азот, N2 | M9: діоксид вуглецю, CО2 | O9: Теплота згоряння нижча | R9: Теплота згоряння вища | U9: Число Воббе вище
O10: ккал/м3 | P10: МДж/м3 | Q10: кВт⋅год/м3 | R10: ккал/м3 | S10: МДж/м3 | T10: кВт⋅год/м3 | U10: ккал/м3 | V10: МДж/м3 | W10: кВт⋅год/м3
A11: 1 | O11: =P11*238.8459 -> 8201.968206 | P11: 34.34 | Q11: =P11/3.6 -> 9.538888889 | R11: =S11*238.8459 -> 9080.921118 | S11: 38.02 | T11: =S11/3.6 -> 10.56111111 | AC11: =SUM(B11:M11)+$K$42+$N$42 -> 0
A12: 2 | O12: =P12*238.8459 -> 8201.968206 | P12: 34.34 | Q12: 9.538888889 | R12: =S12*238.8459 -> 9080.921118 | S12: 38.02 | T12: 10.56111111 | AC12: 0
A13: 3 | O13: 8201.968206 | P13: 34.34 | Q13: 9.538888889 | R13: 9080.921118 | S13: 38.02 | T13: 10.56111111 | AC13: 0 | AD13: =IF(AC13=100,"ОК"," ") -> 
A14: 4 | O14: 8201.968206 | P14: 34.34 | Q14: 9.538888889 | R14: 9080.921118 | S14: 38.02 | T14: 10.56111111 | AC14: 0 | AD14: =IF(AC14=100,"ОК"," ") -> 
A15: 5 | O15: 8201.968206 | P15: 34.34 | Q15: 9.538888889 | R15: 9080.921118 | S15: 38.02 | T15: 10.56111111 | AC15: 0
A16: 6 | B16: 89.5721 | C16: 5.0371 | D16: 1.0737 | E16: 0.1098 | F16: 0.1666 | G16: 0.0035 | H16: 0.0431 | I16: 0.0361 | J16: 0.0791 | K16: 0.0067 | L16: 1.6819 | M16: 2.1903 | N16: 0.7535 | O16: 8218.687419 | P16: 34.41 | Q16: 9.558333333 | R16: 9104.805708 | S16: 38.12 | T16: 10.58888889 | U16: =V16*238.8459 -> 11509.98392 | V16: 48.19 | W16: =V16/3.6 -> 13.38611111 | X16: -12.7 | Y16: -12 | AC16: 100 | AD16: ОК
A17: 7 | O17: 8218.687419 | P17: 34.41 | Q17: 9.558333333 | R17: 9104.805708 | S17: 38.12 | T17: 10.58888889 | AC17: 0
A18: 8 | O18: 8218.687419 | P18: 34.41 | Q18: 9.558333333 | R18: 9104.805708 | S18: 38.12 | T18: 10.58888889 | AC18: 0
A19: 9 | O19: 8218.687419 | P19: 34.41 | Q19: 9.558333333 | R19: 9104.805708 | S19: 38.12 | T19: 10.58888889 | AC19: 0
A20: 10 | O20: 8218.687419 | P20: 34.41 | Q20: 9.558333333 | R20: 9104.805708 | S20: 38.12 | T20: 10.58888889 | AC20: 0
A21: 11 | O21: 8218.687419 | P21: 34.41 | Q21: 9.558333333 | R21: 9104.805708 | S21: 38.12 | T21: 10.58888889 | AC21: 0
A22: 12 | O22: 8218.687419 | P22: 34.41 | Q22: 9.558333333 | R22: 9104.805708 | S22: 38.12 | T22: 10.58888889 | AC22: 0
A23: 13 | B23: 89.5156 | C23: 5.1 | D23: 1.0723 | E23: 0.1098 | F23: 0.1682 | G23: 0.0036 | H23: 0.0435 | I23: 0.0357 | J23: 0.0663 | K23: 0.0102 | L23: 1.7398 | M23: 2.1348 | N23: 0.7532 | O23: 8218.687419 | P23: 34.41 | Q23: 9.558333333 | R23: 9104.805708 | S23: 38.12 | T23: 10.58888889 | U23: =V23*238.8459 -> 11512.37238 | V23: 48.2 | W23: =V23/3.6 -> 13.38888889 | AC23: 99.9998
A24: 14 | O24: 8218.687419 | P24: 34.41 | Q24: 9.558333333 | R24: 9104.805708 | S24: 38.12 | T24: 10.58888889 | AC24: 0
A25: 15 | O25: 8218.687419 | P25: 34.41 | Q25: 9.558333333 | R25: 9104.805708 | S25: 38.12 | T25: 10.58888889 | AC25: 0
A26: 16 | O26: 8218.687419 | P26: 34.41 | Q26: 9.558333333 | R26: 9104.805708 | S26: 38.12 | T26: 10.58888889 | AC26: 0
A27: 17 | O27: 8218.687419 | P27: 34.41 | Q27: 9.558333333 | R27: 9104.805708 | S27: 38.12 | T27: 10.58888889 | AC27: 0
A28: 18 | O28: 8218.687419 | P28: 34.41 | Q28: 9.558333333 | R28: 9104.805708 | S28: 38.12 | T28: 10.58888889 | AC28: 0
A29: 19 | O29: 8218.687419 | P29: 34.41 | Q29: 9.558333333 | R29: 9104.805708 | S29: 38.12 | T29: 10.58888889 | AC29: 0
A30: 20 | B30: 89.6699 | C30: 4.9743 | D30: 1.0574 | E30: 0.1123 | F30: 0.1744 | G30: 0.0038 | H30: 0.047 | I30: 0.0393 | J30: 0.0806 | K30: 0.0078 | L30: 1.757 | M30: 2.0763 | N30: 0.7524 | O30: 8221.075878 | P30: 34.42 | Q30: 9.561111111 | R30: 9104.805708 | S30: 38.12 | T30: 10.58888889 | U30: =V30*238.8459 -> 11521.92622 | V30: 48.24 | W30: =V30/3.6 -> 13.4 | X30: -12.1 | Y30: -12.4 | AC30: 100.0001 | AD30: =IF(AC30=100,"ОК"," ") -> 
A31: 21 | O31: =P31*238.8459 -> 8221.075878 | P31: 34.42 | Q31: =P31/3.6 -> 9.561111111 | R31: =S31*238.8459 -> 9104.805708 | S31: 38.12 | T31: =S31/3.6 -> 10.58888889 | AC31: 0
A32: 22 | O32: 8221.075878 | P32: 34.42 | Q32: 9.561111111 | R32: 9104.805708 | S32: 38.12 | T32: 10.58888889 | AC32: 0
A33: 23 | O33: 8221.075878 | P33: 34.42 | Q33: =P33/3.6 -> 9.561111111 | R33: 9104.805708 | S33: 38.12 | T33: =S33/3.6 -> 10.58888889 | AC33: 0 | AD33: =IF(AC33=100,"ОК"," ") -> 
A34: 24 | O34: 8221.075878 | P34: 34.42 | Q34: 9.561111111 | R34: 9104.805708 | S34: 38.12 | T34: 10.58888889 | AC34: 0
A35: 25 | O35: 8221.075878 | P35: 34.42 | Q35: 9.561111111 | R35: 9104.805708 | S35: 38.12 | T35: 10.58888889 | AC35: 0
A36: 26 | O36: 8221.075878 | P36: 34.42 | Q36: 9.561111111 | R36: 9104.805708 | S36: 38.12 | T36: =S36/3.6 -> 10.58888889 | AC36: 0
A37: 27 | B37: 89.6029 | C37: 5.0077 | D37: 1.0554 | E37: 0.1144 | F37: 0.1785 | G37: 0.004 | H37: 0.0491 | I37: 0.0413 | J37: 0.084 | K37: 0.0098 | L37: 1.7369 | M37: 2.1162 | N37: 0.7532 | O37: 8223.464337 | P37: 34.43 | Q37: 9.563888889 | R37: 9109.582626 | S37: 38.14 | T37: 10.59444444 | U37: =V37*238.8459 -> 11519.53776 | V37: 48.23 | W37: =V37/3.6 -> 13.39722222 | Z37: 0.006 | AA37: 0.02 | AB37: відсут | AC37: 100.0002
A38: 28 | O38: 8223.464337 | P38: 34.43 | Q38: 9.563888889 | R38: 9109.582626 | S38: 38.14 | T38: 10.59444444 | AC38: 0
A39: 29 | O39: 8223.464337 | P39: 34.43 | Q39: 9.563888889 | R39: 9109.582626 | S39: 38.14 | T39: 10.59444444 | AC39: 0
A40: 30 | O40: 8223.464337 | P40: 34.43 | Q40: 9.563888889 | R40: 9109.582626 | S40: 38.14 | T40: 10.59444444 | AC40: 0
A41: 31 | O41: 8223.464337 | P41: 34.43 | Q41: 9.563888889 | R41: 9109.582626 | S41: 38.14 | T41: 10.59444444 | AC41: 0
A42: Рівень одоризації відповідає чинним нормативним документам | O42: =SUMPRODUCT(O11:O41,' розрахунок'!F7:F37)/' розрахунок'!F38 -> 8216.862699 | P42: =SUMPRODUCT(P11:P41,' розрахунок'!F7:F37)/' розрахунок'!F38 -> 34.40236026 | Q42: =SUMPRODUCT(Q11:Q41,' розрахунок'!F7:F37)/' розрахунок'!F38 -> 9.556211184 | R42: =SUMPRODUCT(R11:R41,' розрахунок'!F7:F37)/' розрахунок'!F38 -> 9101.189591 | S42: =SUMPRODUCT(S11:S41,' розрахунок'!F7:F37)/' розрахунок'!F38 -> 38.10486004 | T42: =SUMPRODUCT(T11:T41,' розрахунок'!F7:F37)/' розрахунок'!F38 -> 10.58468334
H43: Середньозважене значення теплоти згоряння:
B46: Головний інженер Боярського ЛВУМГ Табак С.М. 03.04.2017 р.
C47: Підрозділу підприємства, якому підпорядкована лабораторія | O47: прізвище | R47: підпис | V47: дата
B48: Завідувач вимірювальної хіміко-аналітичної лабораторії Клименко І.А. 03.04.2017 р.
C49: Лабораторія, де здійснювалось вимірювання газу | O49: прізвище | R49: підпис | V49: дата
B50: Начальник служби газовимірювань та метрології Прима Ю.І. 03.04.2017 р.
C51: Підрозділу, відповідального за облік газу за маршрутом | O51: прізвище | R51: підпис | V51: дата

Sheet розрахунок (hidden)
A2: Додаток до Паспорту фізико-хімічних показників природного газу по маршруту № 24
A4: Число місяця | B4: Теплота згоряння вища, МДж/м3 | C4: Київська область | F4: Загальний обсяг газу, м3
C5: Обсяг газу переданого за добу, м3
C6: ГРС Хотів | D6: ГРСр/п Хотівський | E6: ГРС Тарасівка
A7: 1 | B7: 38.02 | C7: 1404.453 | D7: 52.457 | E7: 87.789 | F7: =SUM(C7:E7) -> 1544.699
A8: 2 | B8: 38.02 | C8: 1451.391 | D8: 53.131 | E8: 87.715 | F8: 1592.237
A9: 3 | B9: 38.02 | C9: 1389.75 | D9: 52.027 | E9: 86.274 | F9: 1528.051 | H9: 38.10391863 | I9: 38.10430136 | J9: 38.10428468
A10: 4 | B10: 38.02 | C10: 1446.471 | D10: 51.132 | E10: 84.722 | F10: 1582.325 | H10: 9100.964739 | I10: 9101.056152 | J10: 9101.052168
A11: 5 | B11: 38.02 | C11: 1395.126 | D11: 49.906 | E11: 82.022 | F11: 1527.054 | H11: 10.58442184 | I11: 10.58452816 | J11: 10.58452352
A12: 6 | B12: 38.12 | C12: 1294.504 | D12: 46.832 | E12: 77.155 | F12: 1418.491
A13: 7 | B13: 38.12 | C13: 1175.526 | D13: 45.015 | E13: 74.6 | F13: 1295.141
A14: 8 | B14: 38.12 | C14: 1297.135 | D14: 46.759 | E14: 75.256 | F14: 1419.15
A15: 9 | B15: 38.12 | C15: 1213.616 | D15: 49.529 | E15: 78.472 | F15: 1341.617
A16: 10 | B16: 38.12 | C16: 1147.351 | D16: 46.44 | E16: 73.754 | F16: 1267.545
A17: 11 | B17: 38.12 | C17: 1172.625 | D17: 47.335 | E17: 78.042 | F17: 1298.002
A18: 12 | B18: 38.12 | C18: 1355.449 | D18: 49.966 | E18: 80.641 | F18: 1486.056
A19: 13 | B19: 38.12 | C19: 1212.391 | D19: 48.366 | E19: 77.04 | F19: 1337.797
A20: 14 | B20: 38.12 | C20: 1323.544 | D20: 55.494 | E20: 88.791 | F20: 1467.829
A21: 15 | B21: 38.12 | C21: 2120.745 | D21: 81.076 | E21: 133.275 | F21: 2335.096
A22: 16 | B22: 38.12 | C22: 1328.654 | D22: 51.463 | E22: 83.767 | F22: 1463.884
A23: 17 | B23: 38.12 | C23: 1103.274 | D23: 48.569 | E23: 80.539 | F23: 1232.382
A24: 18 | B24: 38.12 | C24: 1220.69 | D24: 56.159 | E24: 91.587 | F24: 1368.436
A25: 19 | B25: 38.12 | C25: 1287.231 | D25: 56.738 | E25: 92.977 | F25: 1436.946
A26: 20 | B26: 38.12 | C26: 1332.887 | D26: 50.868 | E26: 81.474 | F26: 1465.229
A27: 21 | B27: 38.12 | C27: 1059.418 | D27: 45.673 | E27: 75.398 | F27: 1180.489
A28: 22 | B28: 38.12 | C28: 1017.082 | D28: 34.634 | E28: 59.307 | F28: 1111.023
A29: 23 | B29: 38.12 | C29: 1212.537 | D29: 41.792 | E29: 69.579 | F29: 1323.908
A30: 24 | B30: 38.12 | C30: 1178.189 | D30: 43.347 | E30: 72.589 | F30: 1294.125
A31: 25 | B31: 38.12 | C31: 1142.275 | D31: 43.382 | E31: 73.363 | F31: 1259.02
A32: 26 | B32: 38.12 | C32: 1303.708 | D32: 50.136 | E32: 82.85 | F32: 1436.694
A33: 27 | B33: 38.14 | C33: 1307.397 | D33: 46.008 | E33: 77.225 | F33: 1430.63
A34: 28 | B34: 38.14 | C34: 1234.478 | D34: 36.844 | E34: 63.659 | F34: 1334.981
A35: 29 | B35: 38.14 | C35: 1013.678 | D35: 31.706 | E35: 56.935 | F35: 1102.319
A36: 30 | B36: 38.14 | C36: 1117.491 | D36: 39.087 | E36: 65.223 | F36: 1221.801
A37: 31 | B37: 38.14 | C37: 979.262 | D37: 40.802 | E37: 67.158 | F37: 1087.222
A38: Загальний обсяг газу, м3 | C38: =SUM(C7:C37) -> 39238.328 | D38: 1492.673 | E38: 2459.178 | F38: =SUM(F7:F37) -> 43190.179
A39: Енергія, МДж | C39: =SUMPRODUCT($B$7:$B$37,C7:C37) -> 1495169.39 | D39: 56878.7184 | E39: 93707.61716 | F39: =SUMPRODUCT(B7:B37,F7:F37) -> 1645755.726
A40: Теплота згоряння (середньозважене значення за місяць), МДж/м³ | C40: =C39/C38 -> 38.1048191 | D40: =D39/D38 -> 38.10527718 | E40: =E39/E38 -> 38.10526003 | F40: =F39/F38 -> 38.10486004
A41: Теплота згоряння (середньозважене значення за місяць), ккал/м³ | C41: =C40*238.8459 -> 9101.179813 | D41: =D40*238.8459 -> 9101.289222 | E41: 9101.285128 | F41: 9101.189591
A42: Теплота згоряння (середньозважене значення за місяць), кВт*год./м³ | C42: =C40/3.6 -> 10.58467197 | D42: =D40/3.6 -> 10.58479922 | E42: 10.58479445 | F42: 10.58468334

Sheet додаток
A2: Додаток до Паспорту фізико-хімічних показників природного газу №24
A4: Область | B4: ГРС, прямий споживач | C4: Cередньозважене значення вищої теплоти згоряння
C5: МДж/м³ | D5: ккал/м³ | E5: кВт*год./м³
A6: Київська область | B6: ГРС Хотів | C6: 38.1 | D6: 9100.964739 | E6: 10.58442184
B7: ГРС р/п Хотівський | C7: 38.11 | D7: 9101.056152 | E7: 10.58452816
B8: ГРС Тарасівка | C8: 38.11 | D8: 9101.052168 | E8: 10.58452352
A9: Середньозважене значення вищої теплоти згоряння по маршруту № 24 | C9: 38.10428468 | D9: 9101.052168 | E9: 10.58452352
A29: Головний інженер Боярського ЛВУМГ Табак С.М. 03.04.2017 р.
A30: Підрозділу підприємства, якому підпорядкована лабораторія | D30: прізвище | E30: підпис | F30: дата
A31: Завідувач вимірювальної хіміко-аналітичної лабораторії Клименко І.А. 03.04.2017 р.
A32: Лабораторія, де здійснювалось вимірювання газу | D32: прізвище | E32: підпис | F32: дата
A33: Начальник служби газовимірювань та метрології Прима Ю.І. 03.04.2017 р.
A34: Підрозділу, відповідального за облік газу за маршрутом | D34: прізвище | E34: підпис | F34: дата

Sheet variablesList (hidden)
A1: 3 | B1: x:\gaysin | C1: 10, 11, 24, 25, 127, 128, 132, 180, 207, 215 | D1: x:\
B2: x:\Illinci
B3: x:\Talne
